{"text_format":"1","workbook":"xlsx","n_sheets":3,"sheets":["Relación de gastos","Relación de ingresos ","gastos e ingresos"],"not_rendered":{"charts":0,"images":2,"macros":1,"external_links":0,"defined_names":8,"comments":3,"pivot_tables":0},"unopened":[],"bounds":{"document_bytes":16777216,"sheet_cells":100000,"rows_first":2000,"rows_last":500,"rows_between":2000,"halvings":0,"cell_chars":16384,"cell_head_chars":4096},"cells_cut":0,"cells_raw":0,"read":"whole","date_system":"1900"}

{"sheet":"Relación de gastos","index":0,"n_rows":188,"n_cols":12,"rows_kept":188,"cut":false,"hidden":false,"merged":[[183,0,183,12],[184,0,184,12],[185,0,185,12],[186,0,186,12],[187,0,187,12],[182,0,182,12],[181,0,181,12],[180,0,180,12],[179,0,179,12],[178,0,178,12],[177,0,177,12],[176,0,176,12],[175,0,175,12],[174,0,174,12],[173,0,173,12],[172,0,172,12],[171,0,171,12],[170,0,170,12],[154,1,154,2],[169,0,169,12],[168,0,168,12],[167,0,167,12],[159,10,159,12],[160,0,160,12],[162,0,162,12],[163,0,163,12],[164,0,164,12],[165,0,165,12],[149,0,150,9],[0,0,0,12],[4,0,4,1],[15,0,15,6],[3,2,3,3],[4,2,4,3],[11,11,11,12],[2,0,2,1],[45,11,45,12],[2,4,2,6],[3,4,3,6],[4,4,4,6],[44,11,44,12],[43,11,43,12],[42,11,42,12],[7,2,8,2],[12,11,12,12],[84,0,84,10],[2,9,2,10],[3,9,3,10],[4,9,4,10],[9,0,9,10],[45,0,45,6],[35,11,35,12],[3,0,3,1],[7,1,8,1],[7,0,8,0],[6,0,6,4],[17,11,17,12],[18,11,18,12],[19,11,19,12],[26,11,26,12],[27,0,27,6],[27,11,27,12],[13,11,13,12],[7,11,7,12],[8,11,8,12],[10,0,10,12],[14,11,14,12],[7,3,7,4],[75,11,75,12],[62,11,62,12],[61,11,61,12],[76,0,76,12],[70,0,70,12],[75,0,75,6],[71,11,71,12],[74,11,74,12],[49,11,49,12],[73,11,73,12],[64,0,64,12],[69,0,69,6],[63,0,63,6],[57,0,57,6],[52,0,52,12],[69,11,69,12],[68,11,68,12],[58,0,58,12],[51,0,51,6],[33,11,33,12],[32,11,32,12],[67,11,67,12],[66,11,66,12],[63,11,63,12],[59,11,59,12],[60,11,60,12],[46,0,46,12],[15,11,15,12],[41,11,41,12],[39,11,39,12],[38,11,38,12],[37,11,37,12],[36,11,36,12],[16,0,16,12],[30,11,30,12],[29,11,29,12],[48,11,48,12],[82,0,82,2],[82,3,82,6],[82,11,82,12],[89,0,89,6],[89,11,89,12],[77,11,77,12],[79,11,79,12],[80,11,80,12],[81,0,81,6],[81,11,81,12],[84,11,84,12],[83,0,83,12],[91,11,91,12],[92,11,92,12],[88,11,88,12],[93,11,93,12],[94,11,94,12],[95,0,95,6],[95,11,95,12],[97,11,97,12],[90,0,90,10],[90,11,90,12],[96,0,96,10],[96,11,96,12],[98,11,98,12],[99,11,99,12],[100,11,100,12],[101,0,101,6],[101,11,101,12],[103,11,103,12],[104,11,104,12],[102,0,102,10],[102,11,102,12],[105,11,105,12],[106,11,106,12],[107,0,107,6],[107,11,107,12],[109,11,109,12],[110,11,110,12],[111,11,111,12],[112,11,112,12],[108,0,108,10],[108,11,108,12],[120,0,120,10],[120,11,120,12],[126,0,126,10],[126,11,126,12],[113,0,113,6],[113,11,113,12],[115,11,115,12],[116,11,116,12],[117,11,117,12],[118,11,118,12],[119,0,119,6],[119,11,119,12],[114,0,114,10],[114,11,114,12],[132,11,132,12],[138,0,138,10],[138,11,138,12],[121,11,121,12],[122,11,122,12],[123,11,123,12],[124,11,124,12],[125,0,125,6],[125,11,125,12],[127,11,127,12],[128,11,128,12],[129,11,129,12],[130,11,130,12],[131,0,131,6],[131,11,131,12],[133,11,133,12],[132,0,132,10],[144,0,144,2],[144,3,144,6],[144,11,144,12],[145,0,145,5],[145,11,145,12],[134,11,134,12],[135,11,135,12],[136,11,136,12],[137,0,137,6],[137,11,137,12],[139,11,139,12],[140,11,140,12],[141,11,141,12],[142,11,142,12],[143,0,143,6],[143,11,143,12],[2,2,2,3],[148,0,148,10],[34,0,34,12],[40,0,40,12],[65,11,65,12],[20,11,20,12],[21,0,21,6],[21,11,21,12],[22,0,22,12],[23,11,23,12],[24,11,24,12],[25,11,25,12],[31,11,31,12],[33,0,33,6],[39,0,39,6],[28,0,28,12],[47,11,47,12],[57,11,57,12],[56,11,56,12],[55,11,55,12],[54,11,54,12],[53,11,53,12],[51,11,51,12],[50,11,50,12]]}
["Relación clasificada de todos los gastos realizados para la ejecución de la actividad subvencionada"]
[]
["Persona física/jurídica beneficiaria:         ",null,null,null,"Importe total del proyecto:",null,null,null,null,null,null,"euros"]
["Código de subvención:",null,null,null,"Importe de la subvención otorgada:",null,null,null,null,null,null,"euros"]
["Nombre del proyecto subvencionado:",null,null,null,"Período de ejecución del proyecto subvencionado:",null,null,null,null,null,null,"a"]
[]
["Gastos del proyecto/actividad/servicio subvencionado (*)"]
["Núm. de orden (0)","Número de documento: justificantes gasto personal (1), factura o recibo/tiquet(2)","Concepto de la factura / \ndocumento probatorio equivalente","Emisor/a de la factura",null,"Fecha de emisión","Importe total de la factura","Porcentaje de iva deducido o el de después de aplicar la Prorrata","Importe después de deducir el IVA correspondiente","Importe imputable (dedicado) al proyecto (3)","Importe imputable a la subvención municipal (4)","Observaciones"]
[null,null,null,"NIF","Nombre","dd/mm/aaaa","euros","%","euros","euros","euros"]
["GASTOS DIRECTOS (Aquellos que se identifican directamente con el proyecto)"]
["D1.  Nóminas y seguridad social IRPF (régimen general o régimen de autónomos) del personal propio vinculado al proyecto subvencionado de la Agrupación (MÁX. 50% subvención)"]
[]
[]
[]
[]
[null,null,null,null,null,null,null,null,"Subtotal D1",{"$f":"SUM(J12:J15)","v":0},{"$f":"SUM(K12:K15)","v":0}]
["D2.   Trabajos realizados por profesionales y empresas externas directamente vinculadas al proyecto subvencionado"]
[]
[]
[]
[]
[null,null,null,null,null,null,null,null,"Subtotal D2",{"$f":"SUM(J18:J21)","v":0},{"$f":"SUM(K18:K21)","v":0}]
["D3. Alquiler de bienes muebles/inmuebles directamente vinculados al proyecto subvencionado"]
[]
[]
[]
[]
[null,null,null,null,null,null,null,null,"Subtotal D3",{"$f":"SUM(J24:J27)","v":0},{"$f":"SUM(K24:K27)","v":0}]
["D4. Adquisición de materiales y bienes consumibles íntegramente imputables al proyecto subvencionado"]
[]
[]
[]
[]
[null,null,null,null,null,null,null,null,"Subtotal D4",{"$f":"SUM(J30:J33)","v":0},{"$f":"SUM(K30:K33)","v":0}]
["D5. Transporte – mensajería imputables al proyecto subvencionado"]
[]
[]
[]
[]
[null,null,null,null,null,null,null,null,"Subtotal D5",{"$f":"SUM(J36:J39)","v":0},{"$f":"SUM(K36:K39)","v":0}]
["D6. Publicidad y propaganda de las actividades directamente vinculadas al proyecto subvencionado"]
[]
[]
[]
[]
[null,null,null,null,null,null,null,null,"Subtotal D6",{"$f":"SUM(J42:J45)","v":0},{"$f":"SUM(K42:K45)","v":0}]
["D7.  Alojamiento y dietas, del personal contratado y voluntarios"]
[]
[]
[]
[]
[null,null,null,null,null,null,null,null,"Subtotal D7",{"$f":"SUM(J48:J51)","v":0},{"$f":"SUM(K48:K51)","v":0}]
["D8.  Ayudas para el transporte de los/as participantes de los proyectos en caso de que sea necesario de manera justificada"]
[]
[]
[]
[]
[null,null,null,null,null,null,null,null,"Subtotal D8",{"$f":"SUM(J54:J57)","v":0},{"$f":"SUM(K54:K57)","v":0}]
["D9.  Viajes y desplazamientos imputables a las actividades del proyecto subvencionado"]
[]
[]
[]
[]
[null,null,null,null,null,null,null,null,"Subtotal D9",{"$f":"SUM(J60:J63)","v":0},{"$f":"SUM(K60:K63)","v":0}]
["D10. Tributos, cuando sean abonados directamente por la persona jurídica o física beneficiaria"]
[]
[]
[]
[]
[null,null,null,null,null,null,null,null,"Subtotal D10",{"$f":"SUM(J66:J69)","v":0},{"$f":"SUM(K66:K69)","v":0}]
["D11.  Otros gastos que de manera justificada y por la tipología del proyecto puedan imputarse directamente al proyecto subvencionado"]
[]
[]
[]
[]
[null,null,null,null,null,null,null,null,"Subtotal D11",{"$f":"SUM(J72:J75)","v":0},{"$f":"SUM(K72:K75)","v":0}]
["D12.  Aportaciones a fondo de contingencia "]
[]
[]
[]
[]
[null,null,null,null,null,null,null,null,"Subtotal D12",{"$f":"SUM(J78:J81)","v":0},{"$f":"SUM(K78:K81)","v":0}]
["TOTAL GASTOS DIRECTOS ",null,null,null,null,null,null,null,"TOTAL GASTOS DIRECTOS",{"$f":"+J16+J34+J40+J46+J52+J58+J64+J70+J76+J82+J28+J22","v":0},{"$f":"+K16+K34+K40+K46+K52+K58+K64+K70+K76+K82+K28+K22","v":0}]
["GASTOS INDIRECTOS (no se pueden asignar directamente al proyecto sin utilizar algún % de asignación)"]
["I.1 Personal de soporte al proyecto (Nóminas y seguridad social)"]
[]
[]
[]
[]
[null,null,null,null,null,null,null,null,"Subtotal I1",{"$f":"SUM(J86:J89)","v":0},{"$f":"SUM(K86:K89)","v":0}]
["I.2  Seguros"]
[]
[]
[]
[]
[null,null,null,null,null,null,null,null,"Subtotal I2",{"$f":"SUM(J92:J95)","v":0},{"$f":"SUM(K92:K95)","v":0}]
["I.3  Amortización"]
[]
[]
[]
[]
[null,null,null,null,null,null,null,null,"Subtotal I3",{"$f":"SUM(J98:J101)","v":0},{"$f":"SUM(K98:K101)","v":0}]
["I.4  Alquiler de bienes inmuebles"]
[]
[]
[]
[]
[null,null,null,null,null,null,null,null,"Subtotal I4",{"$f":"SUM(J104:J107)","v":0},{"$f":"SUM(K104:K107)","v":0}]
["I.5  Adquisición de materiales y bienes consumibles parcialmente imputables al proyecto"]
[]
[]
[]
[]
[null,null,null,null,null,null,null,null,"Subtotal I5",{"$f":"SUM(J110:J113)","v":0},{"$f":"SUM(K110:K113)","v":0}]
["I.6  Mantenimiento de edificios y/o instalaciones"]
[]
[]
[]
[]
[null,null,null,null,null,null,null,null,"Subtotal I6",{"$f":"SUM(J116:J119)","v":0},{"$f":"SUM(K116:K119)","v":0}]
["I.7  Comunicaciones (teléfono, correos, conexión a internet)"]
[]
[]
[]
[]
[null,null,null,null,null,null,null,null,"Subtotal I7",{"$f":"SUM(J122:J125)","v":0},{"$f":"SUM(K122:K125)","v":0}]
["I.8  Gastos financieros"]
[]
[]
[]
[]
[null,null,null,null,null,null,null,null,"Subtotal I8",{"$f":"SUM(J128:J131)","v":0},{"$f":"SUM(K128:K131)","v":0}]
["I.9  Suministros "]
[]
[]
[]
[]
[null,null,null,null,null,null,null,null,"Subtotal I9",{"$f":"SUM(J134:J137)","v":0},{"$f":"SUM(K134:K137)","v":0}]
["I.10  Trabajo realizado por otras empreses, parcialmente imputables al proyecto (limpieza, seguridad...)"]
[]
[]
[]
[]
[null,null,null,null,null,null,null,null,"Subtotal I10",{"$f":"SUM(J140:J143)","v":0},{"$f":"SUM(K140:K143)","v":0}]
["TOTAL GASTOS INDIRECTOS ",null,null,null,null,null,null,null,"TOTAL GASTOS INDIRECTOS",{"$f":"+J90+J96+J102+J108+J114+J120+J126+J132+J138+J144","v":0},{"$f":"+K90+K96+K102+K108+K114+K120+K126+K132+K138+K144","v":0}]
["TOTAL GASTOS",null,null,null,null,null,null,null,"TOTAL",{"$f":"+J145+J83","v":0},{"$f":"+K145+K83","v":0}]
[]
[]
["El Sr./Sra. (indicar el nombre y apellidos de la persona representante que firma la justificación) con DNI/NIE (indicar el núm. DNI) en calidad de persona física beneficiaria o representante legal de la persona jurídica beneficiaria (indicar nombre y apellidos) con NIF (indicar núm DNI)."]
["CERTIFICA que los gastos imputados al proyecto/actividad/servicio subvencionado han sido efectivamente efectuados; que custodiará la documentación soporte que lo acredita; que esta documentación se encuentra a disposición del Ayuntamiento de Barcelona o de los otros entes municipales en los archivos de esta Entidad, durante un período mínimo de 4 años a contar desde la fecha de presentación de la presente justificación."]
[]
[]
[]
[]
[null,"Población y fecha: ",null,null,"Firma y sello (en caso de registro físico)"]
[]
[]
[]
[]
["Notas:"]
["(*) Deben relacionarse todos los gastos del proyecto/actividad/servicio subvencionado. En el caso de que el número de filas de cada concepto sea insuficiente podéis insertar líneas dentro del mismo concepto seleccionando una celda verde y haciendo clic sobre el botón de insertar línea."]
["(0) El número de orden debe ser correlativo comenzando por D.1.1, D.1.2, D.1.3, D.2.4, etc."]
["(1) Respecto a los gastos de recursos humanos, puede ser subvencionable el coste total salarial mensual, que corresponde a la suma de la retribución bruta que aparece en la nómina del trabajador/a más la cuota de la empresa a la Seg. Social. Los gastos de personal se justifican con la nómina del trabajador/a acompañada de los correspondientes TC1 y TC2 de la TGSS y el modelo 111 del IRPF."]
["(2) En el caso de que el documento justificativo del resto de gastos, no sea una factura, sino otro documento probatorio equivalente, como un recibo o justificante (como para dietas o transporte público), hay que indicarlo en la columna \"observaciones\"."]
["(3) En el caso de que un justificante incluya conceptos que no tienen que ver con el proyecto/actividad/servicio por el cual se ha otorgado la subvención, aquí sólo se debe indicar la parte que realmente se ha dedicado al proyecto."]
["(4) En esta columna se debe indicar el importe total o parcial de la factura que se imputa a la subvención recibida del Ayuntamiento de Barcelona. El total imputado, en esta columna, debe ser igual al importe de la subvención recibida."]
[]
["Modalidad Bb: Intercooperación de 1r nivel: Proyectos de intercooperación promovidos por entidades y empresas de la Economía Social y Solidaria que contribuyan al despliegue de la Estrategia BCN 2030 ESS"]
["1.  La cuantía de la subvención otorgada no superará el 80% del gasto total del proyecto a subvencionar. "]
["2.  El importe máximo de subvención para la modalidad \"b\" de la Intercooperación (Bb) es 18.000€."]
["3.  En el caso de que la solicitud presentada sobrepase el importe máximo, se considerará como importe solicitado el máximo de lo establecido en la convocatoria."]
["4.  Se limita con un máximo del 50% el importe de la subvención para gastos de personal propio que participa de forma directa y debidamente en el proyecto."]
["5.  La suma de personal propio asignado al proyecto (de la entidad solicitante y participantes del acuerdo de cooperación) no podrá superar el 50% del importe de la subvención. En esta modalidad se aceptará la imputación de gastos de personal propio de las entidades participantes firmantes según el acuerdo de cooperación."]
["6.  La imputación de gastos indirectos no podrá exceder de un 10% del total de la subvención otorgada (punto 13.7 de las bases reguladoras)."]
["7.  El carácter subvencionable del gasto de amortización estará sujeto a las condiciones siguientes:"]
["* Que las subvenciones no hayan contribuido en la compra de los bienes."]
["* Que la amortización se calcule de conformidad con las normas de contabilidad generalmente aceptadas."]
["* Que el coste se refiera al período subvencionable."]
["8.  En ningún caso se considerarán gastos subvencionables:"]
["* Los impuestos indirectos cuando sean susceptibles de recuperación o compensación, ni los impuestos sobre la renta."]
["* Los gastos de inversión, incluidas las adquisiciones de bienes muebles."]
["* Los gastos realizados con fecha anterior al inicio del proyecto y fecha posterior a la finalización del proyecto."]
["* Otros gastos que se indiquen en la convocatoria."]
["9.  No serán elegibles facturas de empresas emitidas entre las entidades participantes del acuerdo de cooperación."]
["10.  Cuando deban hacerse gastos de más de 12.000 €, sin IVA, en el caso de prestaciones de servicios o entrega de bienes deberán incorporarse tres presupuestos solicitados y argumentar el motivo de la adjudicación en el caso de no ser la propuesta más favorable económicamente."]
["11. Los salarios percibidos por las personas contratadas en el marco del proyecto subvencionado no sean inferiores a 1.088,56€ brutos mensuales (13.062,72€ brutos en cómputo anual) en el caso de jornadas completas, o la parte proporcional en el caso de jornadas parciales (punto 7 de las bases 2019: Requisitos de los proyectos)."]
["12. Los materiales producidos de difusión, estudios, informes o materiales didácticos utilizados, etc. en el caso de tratarse de gasto elegible de la subvención, deberán tener licencia Creative Commons -Compartir Igual- (share alike) y no podrá tener la condición –Sin Obras Derivadas- (no derivate Works)."]
["13. La no realización de la actividad subvencionada o el incumplimiento de las condiciones que fueron consideradas para el otorgamiento de la subvención, así como la falta de justificación o la justificación incompleta o incorrecta de la actividad subvencionada, puede comportar el reintegro total o parcial de la subvención por parte de la organización beneficiaria (punto 19 bases reguladoras)."]

{"sheet":"Relación de ingresos ","index":1,"n_rows":79,"n_cols":10,"rows_kept":79,"cut":false,"hidden":false,"merged":[[58,6,58,9],[56,0,56,3],[74,1,74,2],[64,6,64,9],[59,6,59,9],[66,6,66,9],[60,6,60,9],[61,6,61,9],[62,6,62,9],[63,6,63,9],[66,0,66,3],[65,0,65,3],[68,0,68,9],[69,0,70,9],[65,6,65,9],[0,0,0,9],[9,0,9,9],[15,0,15,9],[21,0,21,9],[7,6,8,9],[10,6,10,9],[11,6,11,9],[7,0,8,0],[12,6,12,9],[13,6,13,9],[4,2,4,3],[3,2,3,3],[2,2,2,3],[6,0,6,3],[7,2,7,3],[7,1,8,1],[37,6,37,9],[57,0,57,9],[56,6,56,9],[43,6,43,9],[42,6,42,9],[50,0,50,3],[53,6,53,9],[52,6,52,9],[41,6,41,9],[40,6,40,9],[51,0,51,9],[50,6,50,9],[49,6,49,9],[48,6,48,9],[45,0,45,9],[14,0,14,3],[44,0,44,3],[27,0,27,9],[33,0,33,9],[39,0,39,9],[38,0,38,3],[32,0,32,3],[14,6,14,9],[20,6,20,9],[29,6,29,9],[20,0,20,3],[23,6,23,9],[22,6,22,9],[26,0,26,3],[19,6,19,9],[18,6,18,9],[17,6,17,9],[16,6,16,9],[34,6,34,9],[28,6,28,9],[47,6,47,9],[46,6,46,9],[26,6,26,9],[25,6,25,9],[24,6,24,9],[36,6,36,9],[35,6,35,9],[44,6,44,9],[30,6,30,9],[32,6,32,9],[31,6,31,9],[38,6,38,9]]}
["Detalle de todos los ingresos obtenidos y aportaciones del propio beneficiario para la ejecución de la actividad subvencionada"]
[]
[null,"Nombre de la persona física/jurídica beneficiaria:        ",{"$f":"IF('Relación de gastos'!C3:D3<>\"\",'Relación de gastos'!C3:D3,\"\")","v":""},null,"Importe total del proyecto:",null,null,{"$f":"IF(+'Relación de gastos'!J3=\"\",\"\",+'Relación de gastos'!J3)","v":""},"euros"]
[null,"Código de subvención:",{"$f":"IF('Relación de gastos'!C4:D4<>\"\",'Relación de gastos'!C4:D4,\"\")","v":""},null,"Importe de la subvención otorgada:",null,null,{"$f":"IF(+'Relación de gastos'!J4=\"\",\"\",+'Relación de gastos'!J4)","v":""},"euros"]
[null,"Nombre del proyecto subvencionado:",{"$f":"IF('Relación de gastos'!C5:D5<>\"\",'Relación de gastos'!C5:D5,\"\")","v":""},null,"Período de ejecución del proyecto subvencionado:",null,null,{"$f":"IF(+'Relación de gastos'!J5=\"\",\"\",+'Relación de gastos'!J5)","v":""},"a",{"$f":"IF(+'Relación de gastos'!M5=\"\",\"\",+'Relación de gastos'!M5)","v":""}]
[]
["Ingresos del proyecto/actividad/servicio subvencionado"]
["Núm. de orden (0)","Concepto del ingreso","Emisor/a del ingreso",null,"Fecha de cobro\n(dd/mm/aaaa)","Importe","Observaciones"]
[null,null,"NIF","Nombre","(1)","euros"]
["A. Subvención municipal "]
[]
[]
[]
[]
[null,null,null,null,"Subtotal A",{"$f":"SUM(F11:F14)","v":0}]
["B. Subvenciones de otras administraciones"]
[]
[]
[]
[]
[null,null,null,null,"Subtotal B",{"$f":"SUM(F17:F20)","v":0}]
["C. Subvenciones de entes privados"]
[]
[]
[]
[]
[null,null,null,null,"Subtotal C",{"$f":"SUM(F23:F26)","v":0}]
["D. Recursos propios de la entidad aplicados al proyecto"]
[]
[]
[]
[]
[null,null,null,null,"Subtotal D",{"$f":"SUM(F29:F32)","v":0}]
["E. Taquillaje"]
[]
[]
[]
[]
[null,null,null,null,"Subtotal E",{"$f":"SUM(F35:F38)","v":0}]
["F. Cuotas de inscripción"]
[]
[]
[]
[]
[null,null,null,null,"Subtotal F",{"$f":"SUM(F41:F44)","v":0}]
["G. Venta de Productos"]
[]
[]
[]
[]
[null,null,null,null,"Subtotal G",{"$f":"SUM(F47:F50)","v":0}]
["H. Publicidad y/o Esponsorización"]
[]
[]
[]
[]
[null,null,null,null,"Subtotal H",{"$f":"SUM(F53:F56)","v":0}]
["I. Otros ingresos"]
[]
[]
[]
[]
[]
[]
[]
[null,null,null,null,"Subtotal I",{"$f":"SUM(F59:F65)","v":0}]
["Total INGRESOS",null,null,null,"TOTAL",{"$f":"+F15+F21+F27+F33+F39+F45+F51+F57+F66","v":0}]
[]
[{"$f":"'Relación de gastos'!A149:K149","v":"El Sr./Sra. (indicar el nombre y apellidos de la persona representante que firma la justificación) con DNI/NIE (indicar el núm. DNI) en calidad de persona física beneficiaria o representante legal de la persona jurídica beneficiaria (indicar nombre y apellidos) con NIF (indicar núm DNI)."}]
["CERTIFICA que los ingresos imputados al proyecto/actividad/servicio subvencionado han sido efectivamente ingresados; que custodiará la documentación soporte que lo acredita; que esta documentación se encuentra a disposición del Ayuntamiento de Barcelona o de los otros entes municipales en los archivos de esta Entidad, durante un período mínimo de 4 años a contar desde la fecha de presentación de la presente justificación."]
[]
[]
[]
[]
[null,"Población y fecha: ",null,null,"Firma y sello (en caso de registro físico)"]
[]
[null,"Nota:"]
[null,"(0) El número de orden debe ser correlativo comenzando por el número 1"]
[null,"(1) En caso de que el ingreso esté pendiente de cobro, indicar \"P. Cobro\" "]

{"sheet":"gastos e ingresos","index":2,"n_rows":100,"n_cols":11,"rows_kept":100,"cut":false,"hidden":false,"merged":[[6,0,6,1],[6,2,6,3],[9,0,9,1],[4,0,4,1],[4,2,4,3],[4,5,4,6],[5,0,5,1],[5,2,5,3],[5,5,5,6],[54,0,54,10],[49,0,49,10],[52,0,52,10],[53,0,53,10],[50,0,50,10],[51,0,51,10],[9,6,9,7],[28,8,28,9],[36,7,38,10],[10,8,11,8],[10,9,11,9],[10,0,11,1],[48,0,48,10],[10,2,11,2],[10,3,11,3],[10,6,11,7],[28,6,28,7],[41,0,41,9],[45,1,45,2],[25,0,26,1],[25,2,26,2],[25,3,26,3],[27,6,27,7],[42,0,43,9]]}
[]
[]
["Estado de los gastos realizados y de los ingresos obtenidos para la ejecución de la actividad subvencionada (*)"]
[]
["Nombre de la persona física/jurídica beneficiaria:         ",null,{"$f":"'Relación de ingresos '!C3:D3","v":""},null,null,"Importe total del proyecto:",null,{"$f":"'Relación de ingresos '!H3","v":""},"euros"]
["Código de subvención:",null,{"$f":"'Relación de ingresos '!C4:D4","v":""},null,null,"Importe de la subvención otorgada:",null,{"$f":"'Relación de ingresos '!H4","v":""},"euros"]
["Nombre del proyecto subvencionado:",null,{"$f":"'Relación de ingresos '!C5:D5","v":""},null,null,"Período de ejecución del proyecto subvencionado:",null,null,{"$f":"'Relación de ingresos '!H5","v":""},"a",{"$f":"'Relación de ingresos '!J5","v":""}]
[]
["SUBVENCIONES PARA LA PROMOCIÓN Y REFUERZO DE LA ECONOMÍA SOCIAL Y SOLIDARIA 2020"]
["GASTOS PREVISTOS",null,"importe en euros",null,null,null,"INGRESOS PREVISTOS",null,"importe en euros"]
["Gastos directos \n(aquellos que se identifican directamente con el proyecto)",null,"Previsión inicial o reformulada ya aprovada (1)","Gastos realizados (2)","Diferencia\n",null,"Ingresos previstos",null,"Previsión inicial (1)","Ingresos obtenidos (3)"]
[null,null,null,null,"(2-1)"]
["Bb","D1.  Nóminas y seguridad social IRPF (régimen general o régimen de autónomos) del personal propio vinculado al proyecto subvencionado de la Agrupación (MÁX. 50% subvención)",null,{"$f":"'Relación de gastos'!J16","v":0},{"$f":"+C13-D13","v":0},{"$f":"+IF(D13<0,\"No s'admeten valors negatius\",\"\")","v":""},"A.","Subvención municipal (importe solicitado en la instancia/otorgado)",null,{"$f":"'Relación de ingresos '!F15","v":0},{"$f":"+IF(J13<0,\"No s'admeten valors negatius\",IF(J13<>'Relación de ingresos '!F15,\"No coincideix amb import pestanya anterior\",\"\"))","v":""}]
[null,"D2.   Trabajos realizados por profesionales y empresas externas directamente vinculadas al proyecto subvencionado",null,{"$f":"'Relación de gastos'!J22","v":0},0,{"$f":"+IF(D14<0,\"No s'admeten valors negatius\",\"\")","v":""},"B.","Subvenciones de otras administraciones",null,{"$f":"'Relación de ingresos '!F21","v":0},{"$f":"+IF(J14<0,\"No s'admeten valors negatius\",\"\")","v":""}]
[null,"D3. Alquiler de bienes muebles/inmuebles directamente vinculados al proyecto subvencionado",null,{"$f":"'Relación de gastos'!J28","v":0},0,"","C.","Subvenciones de entes privados",null,{"$f":"'Relación de ingresos '!F27","v":0},""]
[null,"D4. Adquisición de materiales y bienes consumibles íntegramente imputables al proyecto subvencionado",null,{"$f":"'Relación de gastos'!J34","v":0},0,"","D.","Recursos propios de la entidad aplicados al proyecto",null,{"$f":"'Relación de ingresos '!F33","v":0},""]
[null,"D5. Transporte – mensajería imputables al proyecto subvencionado",null,{"$f":"'Relación de gastos'!J40","v":0},0,"","E.","Taquillaje",null,{"$f":"'Relación de ingresos '!F39","v":0},""]
[null,"D6. Publicidad y propaganda de las actividades directamente vinculadas al proyecto subvencionado",null,{"$f":"'Relación de gastos'!J46","v":0},0,"","F.","Cuotas de inscripción",null,{"$f":"'Relación de ingresos '!F45","v":0},""]
[null,"D7. Alojamiento y dietas, del personal contratado y voluntarios",null,{"$f":"'Relación de gastos'!J52","v":0},0,"","G.","Venta de Productos",null,{"$f":"'Relación de ingresos '!F51","v":0},""]
[null,"D8.  Ayudas para el transporte de los/as participantes de los proyectos en caso de que sea necesario de manera justificada",null,{"$f":"'Relación de gastos'!J58","v":0},0,"","H","Publicidad y/o Esponsorización",null,{"$f":"'Relación de ingresos '!F57","v":0},""]
[null,"D9.   Viajes y desplazamientos imputables a las actividades del proyecto subvencionado",null,{"$f":"'Relación de gastos'!J64","v":0},0,{"$f":"+IF(D21<0,\"No s'admeten valors negatius\",\"\")","v":""},"I.","Otros ingresos",null,{"$f":"'Relación de ingresos '!F66","v":0},""]
[null,"D10. Tributos, cuando sean abonados directamente por la persona jurídica o física beneficiaria",null,{"$f":"'Relación de gastos'!J70","v":0},0,{"$f":"+IF(D22<0,\"No s'admeten valors negatius\",\"\")","v":""},null,"Total Ingresos",{"$f":"SUM(I13:I21)","v":0},{"$f":"SUM(J13:J21)","v":0}]
[null,"D11.  Otros gastos que de manera justificada y que por la tipología del proyecto puedan imputarse directamente al proyecto subvencionado",null,{"$f":"'Relación de gastos'!J76","v":0},0,""]
[null,"D12.  Aportaciones a fondo de contingencia ",null,{"$f":"'Relación de gastos'!J82","v":0},0,""]
[null,"Total Gastos Directos   ",{"$f":"SUM(C13:C24)","v":0},{"$f":"SUM(D13:D24)","v":0},{"$f":"SUM(E13:E24)","v":0}]
["Gastos indirectos \n(no se pueden asignar directamente al proyecto sin utilizar algún % de asignación)",null,"Previsión inicial o reformulada ya aprovada (1)","Gastos realizados (2)","Diferencia\n"]
[null,null,null,null,"(2-1)"]
["Bb","I1.  Personal de soporte al proyecto (nóminas y seguridad social)",null,{"$f":"'Relación de gastos'!J90","v":0},{"$f":"+C28-D28","v":0},{"$f":"+IF(D28<0,\"No s'admeten valors negatius\",\"\")","v":""},"Ingresos menos gastos ",null,{"$f":"+I22-C39","v":0},{"$f":"+J22-D39","v":0}]
[null,"I2.  Seguros",null,{"$f":"'Relación de gastos'!J96","v":0},0,{"$f":"+IF(D29<0,\"No s'admeten valors negatius\",\"\")","v":""},"Desviación de Gastos (4)",null,"Desviación de ingresos (4)"]
[null,"I.3  Amortización",null,{"$f":"'Relación de gastos'!J102","v":0},0,"","Importe"," %","Importe","%"]
[null,"I.4  Alquiler de bienes inmuebles",null,{"$f":"'Relación de gastos'!J108","v":0},0,"",{"$f":"D39-C39","v":0},{"$f":"D39/C39","v":{"$error":"#DIV/0!"}},{"$f":"J22-I22","v":0},{"$f":"J22/I22","v":{"$error":"#DIV/0!"}}]
[null,"I.5  Adquisición de materiales y bienes consumibles parcialmente imputables al proyecto",null,{"$f":"'Relación de gastos'!J114","v":0},0,"",null,null,"% subvencionado inicialmente o después de reformulación (5)",{"$f":"I13/I22","v":{"$error":"#DIV/0!"}}]
[null,"I.6  Mantenimiento de edificios y/o instalaciones",null,{"$f":"'Relación de gastos'!J120","v":0},0,"",null,null,"% subvencionado después de justificación (6)",{"$f":"+J13/J22","v":{"$error":"#DIV/0!"}}]
[null,"I.7  Comunicaciones (teléfono, correos, conexión a internet)",null,{"$f":"'Relación de gastos'!J126","v":0},0,""]
[null,"I.8  Gastos financieros",null,{"$f":"'Relación de gastos'!J132","v":0},0,""]
[null,"I.9  Suministros ",null,{"$f":"'Relación de gastos'!J138","v":0},0,""]
[null,"I.10  Trabajo realizado por otras empresas, parcialmente imputables al proyecto (limpieza, seguridad...)",null,{"$f":"'Relación de gastos'!J144","v":0},0,""]
[null,"Total Gastos Indirectos   ",{"$f":"SUM(C28:C37)","v":0},{"$f":"SUM(D28:D37)","v":0},{"$f":"SUM(E28:E37)","v":0}]
[null,"Total Gastos ",{"$f":"+C25+C38","v":0},{"$f":"+D25+D38","v":0},{"$f":"+E38+E25","v":0}]
[]
[null,null,null,null,null,null,{"$f":"J13*0.2","v":0}]
[{"$f":"'Relación de gastos'!A149:K149","v":"El Sr./Sra. (indicar el nombre y apellidos de la persona representante que firma la justificación) con DNI/NIE (indicar el núm. DNI) en calidad de persona física beneficiaria o representante legal de la persona jurídica beneficiaria (indicar nombre y apellidos) con NIF (indicar núm DNI)."}]
["CERTIFICA que los ingresos imputados al proyecto/actividad/servicio subvencionado han sido efectivamente ingresados; que custodiará la documentación soporte que lo acredita; que esta documentación se encuentra a disposición del Ayuntamiento de Barcelona o de los otros entes municipales en los archivos de esta Entidad, durante un período mínimo de 4 años a contar desde la fecha de presentación de la presente justificación."]
[]
[]
[null,"Población y fecha: ",null,null,"Firma y sello (en caso de registro físico)"]
[]
["Notas:"]
["(*) Las columnas sombreadas en color se irán llenando automáticamente a partir de los datos introducidos en los documentos de gastos -detalle e ingresos-detalle. Por lo tanto, no hay que imprimir esta hoja hasta haber llenado las otras."]
["(1) Previsión inicial o reformulación ya aprobada= Se debe indicar la previsión inicial de gastos y de ingresos según aquello que se indicó en el proyecto original en el \"plan de viabilidad económica del proyecto - presupuesto general\". En caso de que ya se haya aprobado una reformulación, se deben indicar las cantidades reformuladas. "]
["(2) Gastos reales = Coste real total del proyecto subvencionado. Automáticamente se introducirán los subtotales de los gastos relacionados en la hoja Gastos-detalle."]
["(3) Ingresos reales = Total de ingresos obtenidos para la realización del proyecto subvencionado. Automáticamente se introducirán los subtotales de los ingresos relacionados en la hoja Ingresos-detalle."]
["(4) Desviación: En el caso de los gastos, la desviación es la diferencia entre gastos reales y la previsión inicial de gastos; y en el caso de ingresos, la diferencia entre los ingresos reales y la previsión inicial de ingresos. "]
["(5) % financiación municipal = porcentaje que suponen las subvenciones municipales (A) respecto del total de ingresos del proyecto subvencionado."]
["(6) El % de la desviación final de gastos se calcula dividiendo el importe resultante de gastos reales - gastos previstos, entre el total de gastos previstos y de la misma manera los ingresos. En el caso de existir una desviación siempre se debe motivar."]
[]
[]
[]
[]
[]
[]
[]
[]
[]
[]
[]
[]
[]
[]
[]
[]
[]
[]
[]
[]
[]
[]
[]
[]
[]
[]
[]
[]
[]
[]
[]
[]
[]
[]
[]
[]
[]
[]
[]
[]
[]
[]
[]
[]
[null,null,0]